fUSD/lending_fUSD_20241021
["ID","MTS","AMOUNT","RATE_DAILY","PERIOD"]
[340599082,1729518668252,-546.85441163,0.00024931,3]
[340599083,1729518668262,-503.21964425,0.00024931,3]
[340599084,1729518668274,-500.0,0.00024931,3]
[340599085,1729518668284,-500.0,0.00024931,3]
[340599086,1729518668294,-500.0,0.00024931,3]
[340599087,1729518668304,-589.80066672,0.00024931,3]
[340599088,1729518668314,-500.0,0.00024931,3]
[340599089,1729518668324,-500.0,0.00024931,3]
[340599090,1729518668333,-484.03740856,0.00024931,3]
[340599091,1729518668343,-500.0,0.00024931,3]
[340599092,1729518668352,-500.0,0.00024931,3]
[340599093,1729518668362,-401.20477085,0.00024931,3]
[340599094,1729518668372,-574.69985415,0.00024931,3]
[340599095,1729518668381,-506.36681931,0.00024931,3]
[340599096,1729518668392,-582.84999091,0.00024931,3]
[340599097,1729518668408,-500.0,0.00024931,3]
[340599098,1729518668418,-500.0,0.00024931,3]
[340599099,1729518668427,-500.0,0.00024931,3]
[340599100,1729518668437,-500.0,0.00024931,3]
[340599101,1729518668447,-500.0,0.00024931,3]
[340599102,1729518668457,-500.0,0.00024931,3]
[340599103,1729518668466,-500.0,0.00024931,3]
[340599104,1729518668476,-564.1997037,0.00024931,3]
[340599105,1729518668486,-579.00004473,0.00024931,3]
[340599106,1729518668496,-500.0,0.00024931,3]
[340599107,1729518668505,-500.0,0.00024931,3]
[340599108,1729518668514,-500.0,0.00024931,3]
[340599109,1729518668524,-433.51437619,0.00024931,3]
[340599110,1729518668534,-500.0,0.00024931,3]
[340599111,1729518668545,-500.0,0.00024931,3]
[340599112,1729518668554,-408.38626709,0.00024931,3]
[340599113,1729518668564,-500.0,0.00024931,3]
[340599114,1729518668573,-500.0,0.00024931,3]
[340599115,1729518668583,-309.87,0.00024931,3]
[340599116,1729518668592,-500.0,0.00024931,3]
[340599117,1729518668601,-262.61449034,0.00024931,3]
[340599118,1729518668611,-500.0,0.00024931,3]
[340599119,1729518668620,-500.0,0.00024931,3]
[340599120,1729518668630,-622.78566358,0.00024931,3]
[340599121,1729518668639,-523.89610404,0.00024931,3]
[340599122,1729518668651,-500.0,0.00024931,3]
[340599123,1729518668660,-562.85283922,0.00024931,3]
[340599124,1729518668670,-503.11586409,0.00024931,3]
[340599125,1729518668679,-500.0,0.00024931,3]
[340599126,1729518668689,-515.06620974,0.00024931,3]
[340599127,1729518668699,-500.0,0.00024931,3]
[340599128,1729518668708,-500.15249912,0.00024931,3]
[340599129,1729518668718,-500.0,0.00024931,3]
[340599130,1729518668727,-500.0,0.00024931,3]
[340599131,1729518668736,-432.59803548,0.00024931,3]
[340599132,1729518668745,-500.0,0.00024931,3]
[340599133,1729518668755,-500.0,0.00024931,3]
[340599134,1729518668764,-500.0,0.00024931,3]
[340599135,1729518668774,-500.0,0.00024931,3]
[340599136,1729518668783,-564.42520785,0.00024931,3]
[340599137,1729518668793,-500.0,0.00024931,3]
[340599138,1729518668802,-601.34710943,0.00024931,3]
[340599139,1729518668811,-289.94105078,0.00024931,3]
[340599140,1729518668820,-500.0,0.00024931,3]
[340599141,1729518668830,-500.0,0.00024931,3]
[340599142,1729518668839,-500.0,0.00024931,3]
[340599143,1729518668849,-564.1015637,0.00024931,3]
[340599144,1729518668858,-500.0,0.00024931,3]
[340599145,1729518668867,-500.0,0.00024931,3]
[340599146,1729518668876,-500.0,0.00024931,3]
[340599147,1729518668886,-231.89841297,0.00024931,3]
[340599148,1729518668896,-500.0,0.00024931,3]
[340599149,1729518668905,-500.0,0.00024931,3]
[340599150,1729518668915,-532.54687559,0.00024931,3]
[340599151,1729518668924,-500.0,0.00024931,3]
[340599152,1729518668933,-500.0,0.00024931,3]
[340599153,1729518668943,-361.77277094,0.00024931,3]
[340599154,1729518668952,-500.0,0.00024931,3]
[340599155,1729518668961,-242.09195991,0.00024931,3]
[340599156,1729518668971,-502.60786106,0.00024931,3]
[340599157,1729518668981,-500.0,0.00024931,3]
[340599158,1729518668990,-500.0,0.00024931,3]
[340599159,1729518669000,-500.0,0.00024931,3]
[340599160,1729518669010,-500.0,0.00024931,3]
[340599161,1729518669019,-500.0,0.00024931,3]
[340599162,1729518669029,-463.61101877,0.00024931,3]
[340599163,1729518669038,-238.94899081,0.00024931,3]
[340599164,1729518669048,-500.0,0.00024931,3]
[340599165,1729518669057,-500.0,0.00024931,3]
[340599166,1729518669067,-491.58119083,0.00024931,3]
[340599167,1729518669076,-504.07309424,0.00024931,3]
[340599168,1729518669086,-537.36260731,0.00024931,3]
[340599169,1729518669096,-500.0,0.00024931,3]
[340599170,1729518669105,-500.0,0.00024931,3]
[340599171,1729518669115,-529.3045078,0.00024931,3]
[340599172,1729518669124,-500.0,0.00024931,3]
[340599173,1729518669134,-500.0,0.00024931,3]
[340599174,1729518669145,-507.82741832,0.00024931,3]
[340599175,1729518669156,-560.753076,0.00024931,3]
[340599176,1729518669166,-623.83357446,0.00024931,3]
[340599177,1729518669175,-615.23243094,0.00024931,3]
[340599178,1729518669185,-500.0,0.00024931,3]
[340599179,1729518669195,-501.32416357,0.00024931,3]
[340599180,1729518669204,-500.0,0.00024931,3]
[340599181,1729518669214,-500.0,0.00024931,3]
[340599182,1729518669223,-500.0,0.00024931,3]
[340599183,1729518669233,-500.0,0.00024931,3]
[340599184,1729518669243,-516.91451253,0.00024931,3]
[340599185,1729518669253,-324.07653978,0.00024931,3]
[340599186,1729518669263,-500.0,0.00024931,3]
[340599187,1729518669272,-500.0,0.00024931,3]
[340599188,1729518669282,-606.07459567,0.00024931,3]
[340599189,1729518669291,-500.0,0.00024931,3]
[340599190,1729518669301,-500.0,0.00024931,3]
[340599191,1729518669310,-500.0,0.00024931,3]
[340599192,1729518669320,-510.22483516,0.00024931,3]
[340599193,1729518669330,-500.0,0.00024931,3]
[340599194,1729518669339,-250.75013024,0.00024931,3]
[340599195,1729518669349,-501.55375866,0.00024931,3]
[340599196,1729518669359,-500.0,0.00024931,3]
[340599197,1729518669368,-500.0,0.00024931,3]
[340599198,1729518669378,-500.0,0.00024931,3]
[340599199,1729518669387,-520.60812995,0.00024931,3]
[340599200,1729518669402,-500.0,0.00024931,3]
[340599201,1729518669411,-500.0,0.00024931,3]
[340599202,1729518669421,-394.04,0.00024931,3]
[340599203,1729518669430,-500.0,0.00024931,3]
[340599204,1729518669440,-242.74411018,0.00024931,3]
[340599205,1729518669449,-524.56808016,0.00024931,3]
[340599206,1729518669459,-500.0,0.00024931,3]
[340599207,1729518669469,-500.0,0.00024931,3]
[340599208,1729518669478,-456.07886624,0.00024931,3]
[340599209,1729518669487,-604.34809717,0.00024931,3]
[340599210,1729518669497,-500.0,0.00024931,3]
[340599211,1729518669507,-500.0,0.00024931,3]
[340599212,1729518669516,-500.0,0.00024931,3]
[340599213,1729518669526,-551.96235158,0.00024931,3]
[340599214,1729518669535,-500.0,0.00024931,3]
[340599215,1729518669546,-416.72994264,0.00024931,3]
[340599216,1729518669555,-500.0,0.00024931,3]
[340599217,1729518669565,-500.0,0.00024931,3]
[340599218,1729518669574,-500.0,0.00024931,3]
[340599219,1729518669584,-500.0,0.00024931,3]
[340599220,1729518669595,-500.0,0.00024931,3]
[340599221,1729518669604,-500.0,0.00024931,3]
[340599222,1729518669614,-500.0,0.00024931,3]
[340599223,1729518669623,-528.38757951,0.00024931,3]
[340599224,1729518669633,-521.2239253,0.00024931,3]
[340599225,1729518669643,-373.71409441,0.00024931,3]
[340599226,1729518669657,-159.82163562,0.00024931,3]
[340599227,1729518669668,-504.18975359,0.00024931,3]
[340599228,1729518669677,-500.0,0.00024931,3]
[340599229,1729518669687,-500.0,0.00024931,3]
[340599230,1729518669696,-500.0,0.00024931,3]
[340599231,1729518669705,-500.0,0.00024931,3]
[340599232,1729518669714,-187.86445,0.00024931,3]
[340599233,1729518669724,-521.23393049,0.00024931,3]
[340599234,1729518669733,-500.0,0.00024931,3]
[340599235,1729518669743,-500.0,0.00024931,3]
[340599236,1729518669752,-500.0,0.00024931,3]
[340599237,1729518669761,-338.23652632,0.00024931,3]
[340599238,1729518669770,-502.00388547,0.00024931,3]
[340599239,1729518669779,-531.31334826,0.00024931,3]
[340599240,1729518669788,-503.15540826,0.00024931,3]
[340599241,1729518669798,-500.0,0.00024931,3]
[340599242,1729518669806,-500.0,0.00024931,3]
[340599243,1729518669815,-504.57683888,0.00024931,3]
[340599244,1729518669825,-617.17862897,0.00024931,3]
[340599245,1729518669834,-597.71930174,0.00024931,3]
[340599246,1729518669843,-500.0,0.00024931,3]
[340599247,1729518669852,-500.0,0.00024931,3]
[340599248,1729518669861,-500.0,0.00024931,3]
[340599249,1729518669870,-191.26217854,0.00024931,3]
[340599250,1729518669879,-500.0,0.00024931,3]
[340599251,1729518669888,-221.81266598,0.00024931,3]
[340599252,1729518669898,-500.0,0.00024931,3]
[340599253,1729518669907,-501.6236373,0.00024931,3]
[340599254,1729518669916,-624.25429973,0.00024931,3]
[340599255,1729518669925,-500.0,0.00024931,3]
[340599256,1729518669935,-502.43198932,0.00024931,3]
[340599257,1729518669944,-502.10971284,0.00024931,3]
[340599258,1729518669954,-519.29349616,0.00024931,3]
[340599259,1729518669963,-500.0,0.00024931,3]
[340599260,1729518669972,-500.0,0.00024931,3]
[340599261,1729518669981,-419.09230657,0.00024931,3]
[340599262,1729518669990,-500.0,0.00024931,3]
[340599263,1729518669999,-516.4207729,0.00024931,3]
[340599264,1729518670010,-500.0,0.00024931,3]
[340599265,1729518670021,-500.0,0.00024931,3]
[340599266,1729518670032,-193.24,0.00024931,3]
[340599267,1729518670043,-504.98172963,0.00024931,3]
[340599268,1729518670052,-500.0,0.00024931,3]
[340599269,1729518670061,-500.0,0.00024931,3]
[340599270,1729518670070,-500.0,0.00024931,3]
[340599271,1729518670079,-500.0,0.00024931,3]
[340599272,1729518670088,-510.62550714,0.00024931,3]
[340599273,1729518670098,-348.15612486,0.00024931,3]
[340599274,1729518670107,-500.0,0.00024931,3]
[340599275,1729518670116,-505.47245078,0.00024931,3]
[340599276,1729518670125,-500.0,0.00024931,3]
[340599277,1729518670134,-500.0,0.00024931,3]
[340599278,1729518670144,-500.0,0.00024931,3]
[340599279,1729518670155,-584.84909419,0.00024931,3]
[340599280,1729518670164,-500.0,0.00024931,3]
[340599281,1729518670174,-531.62,0.00024931,3]
[340599282,1729518670183,-506.97326915,0.00024931,3]
[340599283,1729518670193,-500.0,0.00024931,3]
[340599284,1729518670204,-226.42113482,0.00024931,3]
[340599285,1729518670214,-500.0,0.00024931,3]
[340599286,1729518670224,-502.98531434,0.00024931,3]
[340599287,1729518670233,-502.5015629,0.00024931,3]
[340599288,1729518670242,-500.0,0.00024931,3]
[340599289,1729518670252,-605.4906303,0.00024931,3]
[340599290,1729518670261,-500.0,0.00024931,3]
[340599291,1729518670271,-578.52137754,0.00024931,3]
[340599292,1729518670280,-500.0,0.00024931,3]
[340599293,1729518670289,-503.34657585,0.00024931,3]
[340599294,1729518670298,-552.5,0.00024931,3]
[340599295,1729518670307,-577.08491414,0.00024931,3]
[340599296,1729518670316,-502.03600944,0.00024931,3]
[340599297,1729518670326,-500.0,0.00024931,3]
[340599298,1729518670335,-627.27102116,0.00024931,3]
[340599299,1729518670344,-500.0,0.00024931,3]
[340599300,1729518670354,-500.0,0.00024931,3]
[340599301,1729518670363,-500.0,0.00024931,3]
[340599302,1729518670372,-500.0,0.00024931,3]
[340599303,1729518670382,-500.0,0.00024931,3]
[340599304,1729518670391,-500.0,0.00024931,3]
[340599305,1729518670404,-500.0,0.00024931,3]
[340599306,1729518670413,-500.0,0.00024931,3]
[340599307,1729518670423,-401.02707845,0.00024931,3]
[340599308,1729518670432,-184.13743608,0.00024931,3]
[340599309,1729518670442,-500.0,0.00024931,3]
[340599310,1729518670452,-515.51330698,0.00024931,3]
[340599311,1729518670462,-537.62651845,0.00024931,3]
[340599312,1729518670472,-500.0,0.00024931,3]
[340599313,1729518670482,-513.53881089,0.00024931,3]
[340599314,1729518670491,-563.22583878,0.00024931,3]
[340599315,1729518670501,-500.0,0.00024931,3]
[340599316,1729518670511,-502.70445703,0.00024931,3]
[340599317,1729518670520,-500.0,0.00024931,3]
[340599318,1729518670530,-500.0,0.00024931,3]
[340599319,1729518670540,-500.0,0.00024931,3]
[340599320,1729518670550,-507.5447566,0.00024931,3]
[340599321,1729518670560,-370.34,0.00024931,3]
[340599322,1729518670570,-500.0,0.00024931,3]
[340599323,1729518670579,-526.67962559,0.00024931,3]
[340599324,1729518670588,-500.0,0.00024931,3]
[340599325,1729518670598,-500.0,0.00024931,3]
[340599326,1729518670607,-500.0,0.00024931,3]
[340599327,1729518670616,-500.0,0.00024931,3]
[340599328,1729518670625,-223.96528227,0.00024931,3]
[340599329,1729518670635,-500.0,0.00024931,3]
[340599330,1729518670644,-569.24586351,0.00024931,3]
[340599331,1729518670654,-511.50180955,0.00024931,3]
[340599332,1729518670663,-500.0,0.00024931,3]
[340599333,1729518670672,-500.0,0.00024931,3]
[340599334,1729518670681,-413.86548723,0.00024931,3]
[340599335,1729518670690,-510.62116621,0.00024931,3]
[340599336,1729518670699,-500.0,0.00024931,3]
[340599337,1729518670708,-191.36547798,0.00024931,3]
[340599338,1729518670717,-511.35,0.00024931,3]
[340599339,1729518670726,-511.35,0.00024931,3]
[340599340,1729518670736,-500.0,0.00024931,3]
[340599341,1729518670745,-221.94,0.00024931,3]
[340599342,1729518670754,-511.35,0.00024931,3]
[340599343,1729518670763,-511.35,0.00024931,3]
[340599344,1729518670772,-511.32792933,0.00024931,3]
[340599345,1729518670781,-511.35,0.00024931,3]
[340599346,1729518670791,-511.35,0.00024931,3]
[340599347,1729518670800,-511.35,0.00024931,3]
[340599348,1729518670809,-511.35,0.00024931,3]
[340599349,1729518670819,-511.35,0.00024931,3]
[340599350,1729518670828,-511.35,0.00024931,3]
[340599351,1729518670838,-511.35,0.00024931,3]
[340599352,1729518670847,-511.35,0.00024931,3]
[340599353,1729518670857,-511.35,0.00024931,3]
[340599354,1729518670866,-511.35,0.00024931,3]
[340599355,1729518670876,-511.35,0.00024931,3]
[340599356,1729518670885,-511.35,0.00024931,3]
[340599357,1729518670895,-500.0,0.00024931,3]
[340599358,1729518670906,-511.35,0.00024931,3]
[340599359,1729518670915,-268.43682494,0.00024931,3]
[340599360,1729518670925,-511.35,0.00024931,3]
[340599361,1729518670934,-511.35,0.00024931,3]
[340599362,1729518670944,-511.35,0.00024931,3]
[340599363,1729518670954,-511.35,0.00024931,3]
[340599364,1729518670964,-511.35,0.00024931,3]
[340599365,1729518670973,-511.35,0.00024931,3]
[340599366,1729518670983,-525.66236308,0.00024931,3]
[340599367,1729518670992,-511.36762981,0.00024931,3]
[340599368,1729518671002,-500.0,0.00024931,3]
[340599369,1729518671013,-508.68560886,0.00024931,3]
[340599370,1729518671023,-500.0,0.00024931,3]
[340599371,1729518671032,-500.0,0.00024931,3]
[340599372,1729518671042,-500.0,0.00024931,3]
[340599373,1729518671138,-500.0,0.00024931,3]
[340599374,1729518671187,-500.0,0.00024931,3]
[340599375,1729518671197,-553.12966357,0.00024931,3]
[340599376,1729518671208,-500.0,0.00024931,3]
[340599377,1729518671218,-495.01293526,0.00024931,3]
[340599378,1729518671228,-615.37406453,0.00024931,3]
[340599379,1729518671239,-500.0,0.00024931,3]
[340599380,1729518671249,-361.09304731,0.00024931,3]
[340599381,1729518671259,-500.0,0.00024931,3]
[340599382,1729518671270,-502.81690034,0.00024931,3]
[340599383,1729518671280,-502.38139437,0.00024931,3]
[340599384,1729518671290,-500.0,0.00024931,3]
[340599385,1729518671300,-500.0,0.00024931,3]
[340599386,1729518671310,-500.0,0.00024931,3]
[340599387,1729518671320,-500.0,0.00024931,3]
[340599388,1729518671330,-500.0,0.00024931,3]
[340599389,1729518671340,-500.0,0.00024931,3]
[340599390,1729518671350,-500.0,0.00024931,3]
[340599391,1729518671360,-380.33054329,0.00024931,3]
[340599392,1729518671370,-500.0,0.00024931,3]
[340599393,1729518671380,-531.55380377,0.00024931,3]
[340599394,1729518671390,-500.0,0.00024931,3]
[340599395,1729518671405,-500.0,0.00024931,3]
[340599396,1729518671414,-500.0,0.00024931,3]
[340599397,1729518671424,-502.9128396,0.00024931,3]
[340599398,1729518671433,-518.12625058,0.00024931,3]
[340599399,1729518671443,-500.0,0.00024931,3]
[340599400,1729518671453,-500.0,0.00024931,3]
[340599401,1729518671462,-150.91835394,0.00024931,3]
[340599402,1729518671471,-604.10612043,0.00024931,3]
[340599403,1729518671481,-500.0,0.00024931,3]
[340599404,1729518671491,-500.0,0.00024931,3]
[340599405,1729518671500,-501.2640013,0.00024931,3]
[340599406,1729518671510,-503.20163782,0.00024931,3]
[340599407,1729518671520,-502.7449729,0.00024931,3]
[340599408,1729518671529,-526.30361933,0.00024931,3]
[340599409,1729518671541,-500.0,0.00024931,3]
[340599410,1729518671552,-500.0,0.00024931,3]
[340599411,1729518671561,-508.91142539,0.00024931,3]
[340599412,1729518671572,-340.1586959,0.00024931,3]
[340599413,1729518671581,-428.58454354,0.00024931,3]
[340599414,1729518671591,-500.0,0.00024931,3]
[340599415,1729518671600,-500.0,0.00024931,3]
[340599416,1729518671610,-501.83370424,0.00024931,3]
[340599417,1729518671619,-503.04193212,0.00024931,3]
[340599418,1729518671629,-500.0,0.00024931,3]
[340599419,1729518671638,-500.0,0.00024931,3]
[340599420,1729518671648,-500.0,0.00024931,3]
[340599421,1729518671658,-500.0,0.00024931,3]
[340599422,1729518671667,-505.13535941,0.00024931,3]
[340599423,1729518671676,-500.0,0.00024931,3]
[340599424,1729518671686,-323.06228936,0.00024931,3]
[340599425,1729518671696,-500.0,0.00024931,3]
[340599426,1729518671705,-500.0,0.00024931,3]
[340599427,1729518671714,-377.41031048,0.00024931,3]
[340599428,1729518671724,-509.77034591,0.00024931,3]
[340599429,1729518671734,-507.29893,0.00024931,3]
[340599430,1729518671744,-500.0,0.00024931,3]
[340599431,1729518671753,-503.2312596,0.00024931,3]
[340599432,1729518671762,-627.24730175,0.00024931,3]
[340599433,1729518671772,-510.5371789,0.00024931,3]
[340599434,1729518671781,-500.0,0.00024931,3]
[340599435,1729518671791,-530.21094422,0.00024931,3]
[340599436,1729518671800,-500.0,0.00024931,3]
[340599437,1729518671810,-500.0,0.00024931,3]
[340599438,1729518671820,-238.17124295,0.00024931,3]
[340599439,1729518671829,-500.0,0.00024931,3]
[340599440,1729518671839,-503.95174256,0.00024931,3]
[340599441,1729518671849,-500.0,0.00024931,3]
[340599442,1729518671858,-500.0,0.00024931,3]
[340599443,1729518671868,-181.35460766,0.00024931,3]
[340599444,1729518671877,-503.03924786,0.00024931,3]
[340599445,1729518671887,-500.0,0.00024931,3]
[340599446,1729518671896,-500.0,0.00024931,3]
[340599447,1729518671905,-500.0,0.00024931,3]
[340599448,1729518671914,-500.48381791,0.00024931,3]
[340599449,1729518671925,-534.92750609,0.00024931,3]
[340599450,1729518671934,-500.0,0.00024931,3]
[340599451,1729518671944,-503.13918109,0.00024931,3]
[340599452,1729518671954,-584.59481343,0.00024931,3]
[340599453,1729518671964,-502.43449781,0.00024931,3]
[340599454,1729518671973,-500.0,0.00024931,3]
[340599455,1729518671983,-500.0,0.00024931,3]
[340599456,1729518671992,-500.0,0.00024931,3]
[340599457,1729518672002,-500.0,0.00024931,3]
[340599458,1729518672011,-516.54267148,0.00024931,3]
[340599459,1729518672021,-508.99407131,0.00024931,3]
[340599460,1729518672030,-500.0,0.00024931,3]
[340599461,1729518672039,-500.0,0.00024931,3]
[340599462,1729518672049,-250.28557374,0.00024931,3]
[340599463,1729518672059,-502.31304094,0.00024931,3]
[340599464,1729518672068,-531.33058371,0.00024931,3]
[340599465,1729518672077,-500.0,0.00024931,3]
[340599466,1729518672087,-500.0,0.00024931,3]
[340599467,1729518672097,-281.57710146,0.00024931,3]
[340599468,1729518672106,-502.47705386,0.00024931,3]
[340599469,1729518672115,-500.0,0.00024931,3]
[340599470,1729518672125,-174.40147639,0.00024931,3]
[340599471,1729518672136,-500.0,0.00024931,3]
[340599472,1729518672145,-343.73403118,0.00024931,3]
[340599473,1729518672156,-500.0,0.00024931,3]
[340599474,1729518672166,-280.73864323,0.00024931,3]
[340599475,1729518672175,-508.69714417,0.00024931,3]
[340599476,1729518672184,-507.27822756,0.00024931,3]
[340599477,1729518672194,-500.0,0.00024931,3]
[340599478,1729518672204,-500.0,0.00024931,3]
[340599479,1729518672216,-500.0,0.00024931,3]
[340599480,1729518672226,-298.42677886,0.00024931,3]
[340599481,1729518672235,-500.0,0.00024931,3]
[340599482,1729518672245,-500.0,0.00024931,3]
[340599483,1729518672254,-502.41978926,0.00024931,3]
[340599484,1729518672264,-191.99863791,0.00024931,3]
[340599485,1729518672274,-533.50106576,0.00024931,3]
[340599486,1729518672283,-500.0,0.00024931,3]
[340599487,1729518672293,-500.0,0.00024931,3]
[340599488,1729518672303,-509.3470927,0.00024931,3]
[340599489,1729518672312,-502.67207297,0.00024931,3]
[340599490,1729518672321,-500.0,0.00024931,3]
[340599491,1729518672331,-500.0,0.00024931,3]
[340599492,1729518672340,-500.0,0.00024931,3]
[340599493,1729518672350,-500.0,0.00024931,3]
[340599494,1729518672360,-500.0,0.00024931,3]
[340599495,1729518672369,-503.91223765,0.00024931,3]
[340599496,1729518672379,-502.37468595,0.00024931,3]
[340599497,1729518672388,-500.0,0.00024931,3]
[340599498,1729518672402,-500.95618507,0.00024931,3]
[340599499,1729518672411,-192.94662659,0.00024931,3]
[340599500,1729518672422,-500.0,0.00024931,3]
[340599501,1729518672431,-503.37515407,0.00024931,3]
[340599502,1729518672441,-500.0,0.00024931,3]
[340599503,1729518672451,-617.81758357,0.00024931,3]
[340599504,1729518672461,-530.27017276,0.00024931,3]
[340599505,1729518672470,-303.74537929,0.00024931,3]
[340599506,1729518672481,-500.0,0.00024931,3]
[340599507,1729518672491,-502.18565486,0.00024931,3]
[340599508,1729518672501,-505.00281297,0.00024931,3]
[340599509,1729518672510,-500.0,0.00024931,3]
[340599510,1729518672520,-505.94700573,0.00024931,3]
[340599511,1729518672529,-500.0,0.00024931,3]
[340599512,1729518672540,-500.0,0.00024931,3]
[340599513,1729518672551,-512.53488609,0.00024931,3]
[340599514,1729518672561,-308.46610817,0.00024931,3]
[340599515,1729518672571,-500.0,0.00024931,3]
[340599516,1729518672581,-504.13314603,0.00024931,3]
[340599517,1729518672591,-505.10998817,0.00024931,3]
[340599518,1729518672601,-500.0,0.00024931,3]
[340599519,1729518672611,-504.04796298,0.00024931,3]
[340599520,1729518672621,-500.0,0.00024931,3]
[340599521,1729518672630,-527.55863779,0.00024931,3]
[340599522,1729518672640,-500.0,0.00024931,3]
[340599523,1729518672649,-513.42729842,0.00024931,3]
[340599524,1729518672660,-256.08711648,0.00024931,3]
[340599525,1729518672670,-500.0,0.00024931,3]
[340599526,1729518672679,-500.0,0.00024931,3]
[340599527,1729518672690,-500.0,0.00024931,3]
[340599528,1729518672700,-500.0,0.00024931,3]
[340599529,1729518672710,-522.70652731,0.00024931,3]
[340599530,1729518672720,-500.0,0.00024931,3]
[340599531,1729518672730,-500.0,0.00024931,3]
[340599532,1729518672740,-188.46013028,0.00024931,3]
[340599533,1729518672749,-490.14907363,0.00024931,3]
[340599534,1729518672759,-504.32108435,0.00024931,3]
[340599535,1729518672769,-500.0,0.00024931,3]
[340599536,1729518672779,-621.75882296,0.00024931,3]
[340599537,1729518672789,-515.10608681,0.00024931,3]
[340599538,1729518672799,-500.0,0.00024931,3]
[340599539,1729518672808,-500.0,0.00024931,3]
[340599540,1729518672818,-209.57865434,0.00024931,3]
[340599541,1729518672828,-500.0,0.00024931,3]
[340599542,1729518672838,-500.0,0.00024931,3]
[340599543,1729518672847,-361.49646683,0.00024931,3]
[340599544,1729518672857,-500.0,0.00024931,3]
[340599545,1729518672867,-517.28960404,0.00024931,3]
[340599546,1729518672877,-500.0,0.00024931,3]
[340599547,1729518672887,-415.65295517,0.00024931,3]
[340599548,1729518672897,-500.0,0.00024931,3]
[340599549,1729518672907,-502.93864953,0.00024931,3]
[340599550,1729518672917,-505.77007595,0.00024931,3]
[340599551,1729518672927,-500.0,0.00024931,3]
[340599552,1729518672938,-500.0,0.00024931,3]
[340599553,1729518672948,-500.0,0.00024931,3]
[340599554,1729518672958,-255.61357078,0.00024931,3]
[340599555,1729518672968,-581.31186249,0.00024931,3]
[340599556,1729518672978,-500.0,0.00024931,3]
[340599557,1729518672988,-500.0,0.00024931,3]
[340599558,1729518672998,-514.02474807,0.00024931,3]
[340599559,1729518673008,-500.0,0.00024931,3]
[340599560,1729518673017,-500.0,0.00024931,3]
[340599561,1729518673026,-500.0,0.00024931,3]
[340599562,1729518673035,-223.1778838,0.00024931,3]
[340599563,1729518673045,-431.09833117,0.00024931,3]
[340599564,1729518673055,-503.15918291,0.00024931,3]
[340599565,1729518673065,-500.0,0.00024931,3]
[340599566,1729518673075,-500.0,0.00024931,3]
[340599567,1729518673085,-500.0,0.00024931,3]
[340599568,1729518673095,-181.98049754,0.00024931,3]
[340599569,1729518673105,-500.0,0.00024931,3]
[340599570,1729518673115,-500.0,0.00024931,3]
[340599571,1729518673125,-500.0,0.00024931,3]
[340599572,1729518673135,-506.75690449,0.00024931,3]
[340599573,1729518673145,-500.0,0.00024931,3]
[340599574,1729518673156,-500.0,0.00024931,3]
[340599575,1729518673166,-500.0,0.00024931,3]
[340599576,1729518673176,-500.0,0.00024931,3]
[340599577,1729518673186,-500.0,0.00024931,3]
[340599578,1729518673196,-500.0,0.00024931,3]
[340599579,1729518673206,-502.99290734,0.00024931,3]
[340599580,1729518673216,-500.0,0.00024931,3]
[340599581,1729518673226,-500.0,0.00024931,3]